[Event "Early-Titled-Tuesday-Blitz-October-24-2023"]
[Site "Chess.com"]
[Date "2023.10.24"]
[Round "10"]
[White "rdarruda"]
[Black "GianmarcoVaR"]
[Result "0-1"]
[WhiteElo "2531"]
[BlackElo "2728"]
[TimeControl "180+1"]
[EndTime "9:53:29 PDT"]
[Termination "GianmarcoVaR won by resignation"]

1. Nf3 {[%clk 0:00:24.7]} 1... Nf6 {[%clk 0:01:02.8]} 2. d4 {[%clk 0:00:25.6]}
2... b6 {[%clk 0:00:57]} 3. g3 {[%clk 0:00:26.2]} 3... Bb7 {[%clk 0:00:57]} 4.
Bg2 {[%clk 0:00:27.1]} 4... g6 {[%clk 0:00:50.1]} 5. O-O {[%clk 0:00:27.6]} 5...
Bg7 {[%clk 0:00:50.7]} 6. c4 {[%clk 0:00:27.8]} 6... O-O {[%clk 0:00:50.1]} 7.
Nc3 {[%clk 0:00:28.4]} 7... Ne4 {[%clk 0:00:50.1]} 8. Nxe4 {[%clk 0:00:27.9]}
8... Bxe4 {[%clk 0:00:50.6]} 9. e3 {[%clk 0:00:28.1]} 9... d6 {[%clk 0:00:50.1]}
10. Bd2 {[%clk 0:00:28.6]} 10... c5 {[%clk 0:00:50.1]} 11. Bc3 {[%clk 0:00:29]}
11... Nd7 {[%clk 0:00:48.1]} 12. Qd2 {[%clk 0:00:29.3]} 12... Qc7 {[%clk
0:00:46.5]} 13. Ng5 {[%clk 0:00:28.9]} 13... Bxg2 {[%clk 0:00:45.1]} 14. Kxg2
{[%clk 0:00:29.8]} 14... cxd4 {[%clk 0:00:40]} 15. Bxd4 {[%clk 0:00:27.6]} 15...
Qxc4 {[%clk 0:00:40.2]} 16. Bxg7 {[%clk 0:00:26.3]} 16... Kxg7 {[%clk
0:00:40.1]} 17. b3 {[%clk 0:00:25.6]} 17... Qb5 {[%clk 0:00:39.9]} 18. Nf3
{[%clk 0:00:24.9]} 18... Rac8 {[%clk 0:00:36.4]} 19. Rac1 {[%clk 0:00:25.3]}
19... Ne5 {[%clk 0:00:35.9]} 20. Nxe5 {[%clk 0:00:24.7]} 20... Qxe5 {[%clk
0:00:36.5]} 21. Rxc8 {[%clk 0:00:24]} 21... Rxc8 {[%clk 0:00:36.7]} 22. Rc1
{[%clk 0:00:24.6]} 22... Rxc1 {[%clk 0:00:34]} 23. Qxc1 {[%clk 0:00:25.5]} 23...
Qd5+ {[%clk 0:00:32.7]} 24. Kg1 {[%clk 0:00:24.8]} 24... Qc5 {[%clk 0:00:32.6]}
25. Qd2 {[%clk 0:00:23.4]} 25... d5 {[%clk 0:00:30]} 26. h4 {[%clk 0:00:23.4]}
26... e5 {[%clk 0:00:29.4]} 27. Qd3 {[%clk 0:00:23.3]} 27... b5 {[%clk 0:00:24]}
28. Qd2 {[%clk 0:00:20.9]} 28... d4 {[%clk 0:00:20.7]} 29. Qd3 {[%clk 0:00:21]}
29... Qd5 {[%clk 0:00:19.3]} 30. e4 {[%clk 0:00:20.3]} 30... Qc5 {[%clk
0:00:19.6]} 31. Kg2 {[%clk 0:00:19.5]} 31... a6 {[%clk 0:00:19.8]} 32. Qd2
{[%clk 0:00:18.3]} 32... h6 {[%clk 0:00:18]} 33. h5 {[%clk 0:00:17.8]} 33...
gxh5 {[%clk 0:00:17.7]} 34. Qe2 {[%clk 0:00:17.6]} 34... Kg6 {[%clk 0:00:17.6]}
35. Qf3 {[%clk 0:00:18]} 35... Qd6 {[%clk 0:00:16.5]} 36. Qf5+ {[%clk
0:00:17.8]} 36... Kg7 {[%clk 0:00:17.2]} 37. Qxh5 {[%clk 0:00:18.3]} 37... d3
{[%clk 0:00:17.9]} 38. Qg4+ {[%clk 0:00:18.3]} 38... Kf8 {[%clk 0:00:10.9]} 39.
Qd1 {[%clk 0:00:17.4]} 39... Qd4 {[%clk 0:00:10.8]} 40. Kf3 {[%clk 0:00:17.4]}
40... d2 {[%clk 0:00:11.4]} 41. Ke2 {[%clk 0:00:16.2]} 41... Qxe4+ {[%clk
0:00:11.8]} 42. Kxd2 {[%clk 0:00:17.1]} 42... Qd4+ {[%clk 0:00:12.4]} 43. Ke2
{[%clk 0:00:17.1]} 43... Qxd1+ {[%clk 0:00:13.1]} 44. Kxd1 {[%clk 0:00:17.8]}
44... f5 {[%clk 0:00:13.5]} 45. Ke2 {[%clk 0:00:18.7]} 45... Kf7 {[%clk
0:00:13.9]} 46. Kf3 {[%clk 0:00:19.6]} 46... h5 {[%clk 0:00:14.4]} 47. Ke3
{[%clk 0:00:20.4]} 47... Ke6 {[%clk 0:00:14.8]} 48. Kf3 {[%clk 0:00:21]} 48...
b4 {[%clk 0:00:15.1]} 49. Ke3 {[%clk 0:00:21.9]} 49... Kf6 {[%clk 0:00:15.5]}
50. Kf3 {[%clk 0:00:22]} 50... Kg5 {[%clk 0:00:16.1]} 51. Kg2 {[%clk 0:00:22.2]}
51... Kg4 {[%clk 0:00:16.5]} 52. f3+ {[%clk 0:00:22.2]} 52... Kg5 {[%clk
0:00:16.8]} 53. Kh3 {[%clk 0:00:22.5]} 53... f4 {[%clk 0:00:12]} 54. Kg2 {[%clk
0:00:19.8]} 54... fxg3 {[%clk 0:00:10]} 55. Kxg3 {[%clk 0:00:20.7]} 55... h4+
{[%clk 0:00:10.3]} 56. Kh3 {[%clk 0:00:21]} 56... Kf4 {[%clk 0:00:11.2]} 57. Kg2
{[%clk 0:00:20]} 57... h3+ {[%clk 0:00:11.3]} 58. Kf2 {[%clk 0:00:20.3]} 58...
h2 {[%clk 0:00:11.9]} 59. Kg2 {[%clk 0:00:21.2]} 59... h1=Q+ {[%clk 0:00:11.7]}
60. Kxh1 {[%clk 0:00:22.1]} 60... Kxf3 {[%clk 0:00:12.4]} 61. Kg1 {[%clk
0:00:22.5]} 61... Ke2 {[%clk 0:00:13]} 0-1

[Event "Early-Titled-Tuesday-Blitz-October-24-2023"]
[Site "Chess.com"]
[Date "2023.10.24"]
[Round "10"]
[White "NikolaGry"]
[Black "meoluoi91"]
[Result "0-1"]
[WhiteElo "2727"]
[BlackElo "2609"]
[TimeControl "180+1"]
[EndTime "9:53:35 PDT"]
[Termination "meoluoi91 won on time"]

1. d4 {[%clk 0:03:00.9]} 1... d5 {[%clk 0:03:00.2]} 2. Bg5 {[%clk 0:03:00.5]}
2... h6 {[%clk 0:02:56.5]} 3. Bh4 {[%clk 0:02:59.9]} 3... Bf5 {[%clk 0:02:49]}
4. e3 {[%clk 0:02:58.8]} 4... c6 {[%clk 0:02:48.9]} 5. Bd3 {[%clk 0:02:57]} 5...
Bxd3 {[%clk 0:02:46.1]} 6. Qxd3 {[%clk 0:02:57]} 6... Qb6 {[%clk 0:02:45]} 7.
Qb3 {[%clk 0:02:48.2]} 7... Nd7 {[%clk 0:02:44.7]} 8. Ne2 {[%clk 0:02:36.1]}
8... e5 {[%clk 0:02:38.9]} 9. Nd2 {[%clk 0:02:24.8]} 9... exd4 {[%clk
0:02:15.9]} 10. exd4 {[%clk 0:02:23.6]} 10... Bd6 {[%clk 0:02:16.1]} 11. O-O-O
{[%clk 0:02:00.8]} 11... Qxb3 {[%clk 0:02:12.3]} 12. axb3 {[%clk 0:02:00.2]}
12... Ngf6 {[%clk 0:02:09.8]} 13. Bg3 {[%clk 0:01:43.8]} 13... Bxg3 {[%clk
0:02:07]} 14. Nxg3 {[%clk 0:01:43.8]} 14... g6 {[%clk 0:02:03.5]} 15. Rhe1+
{[%clk 0:01:41.7]} 15... Kf8 {[%clk 0:02:02.4]} 16. c3 {[%clk 0:01:39.6]} 16...
h5 {[%clk 0:02:01.4]} 17. h4 {[%clk 0:01:34.5]} 17... Ne8 {[%clk 0:01:49.5]} 18.
Nf3 {[%clk 0:01:31.6]} 18... Nd6 {[%clk 0:01:48.2]} 19. Ng5 {[%clk 0:01:22.1]}
19... Re8 {[%clk 0:01:31]} 20. Rxe8+ {[%clk 0:01:19.6]} 20... Nxe8 {[%clk
0:01:28.2]} 21. Re1 {[%clk 0:01:17.6]} 21... Ng7 {[%clk 0:01:23.8]} 22. c4
{[%clk 0:01:03.3]} 22... f6 {[%clk 0:01:14.8]} 23. Nh3 {[%clk 0:00:46.7]} 23...
dxc4 {[%clk 0:01:11.4]} 24. bxc4 {[%clk 0:00:46]} 24... Nb6 {[%clk 0:01:06.4]}
25. b3 {[%clk 0:00:44.9]} 25... Kf7 {[%clk 0:01:06.7]} 26. Kc2 {[%clk
0:00:36.7]} 26... Rd8 {[%clk 0:01:06.6]} 27. Kc3 {[%clk 0:00:36]} 27... Nc8
{[%clk 0:01:00.9]} 28. Nf4 {[%clk 0:00:35]} 28... Nd6 {[%clk 0:00:54.1]} 29. Ne4
{[%clk 0:00:25.5]} 29... Ndf5 {[%clk 0:00:50.2]} 30. d5 {[%clk 0:00:24.8]} 30...
Nxh4 {[%clk 0:00:43.1]} 31. Nc5 {[%clk 0:00:22.2]} 31... b6 {[%clk 0:00:11.8]}
32. Nb7 {[%clk 0:00:20.2]} 32... Re8 {[%clk 0:00:09.4]} 33. dxc6 {[%clk
0:00:13.2]} 33... Rxe1 {[%clk 0:00:08.3]} 34. c7 {[%clk 0:00:13.1]} 34... g5
{[%clk 0:00:06.2]} 35. c8=Q {[%clk 0:00:12.3]} 35... gxf4 {[%clk 0:00:06.5]} 36.
Qc7+ {[%clk 0:00:11.2]} 36... Kg6 {[%clk 0:00:06.3]} 37. Qxf4 {[%clk 0:00:11.1]}
37... Ngf5 {[%clk 0:00:05.5]} 38. g3 {[%clk 0:00:08.9]} 38... Ng2 {[%clk
0:00:05.9]} 39. Qf3 {[%clk 0:00:08]} 39... Rg1 {[%clk 0:00:05.9]} 40. Nd8 {[%clk
0:00:06.8]} 40... Ne7 {[%clk 0:00:05.2]} 41. Qe4+ {[%clk 0:00:06.5]} 41... Nf5
{[%clk 0:00:03.6]} 42. Ne6 {[%clk 0:00:05.4]} 42... Re1 {[%clk 0:00:03.7]} 43.
Qxg2 {[%clk 0:00:04.8]} 43... Rxe6 {[%clk 0:00:02.8]} 44. Qd5 {[%clk 0:00:03.5]}
44... Re5 {[%clk 0:00:02.3]} 45. Qb7 {[%clk 0:00:03.3]} 45... Re2 {[%clk
0:00:02.3]} 46. Qxa7 {[%clk 0:00:01.9]} 46... Rxf2 {[%clk 0:00:02.3]} 47. Qb8
{[%clk 0:00:01.1]} 47... Rf3+ {[%clk 0:00:02.7]} 48. Kb4 {[%clk 0:00:01.1]}
48... Re3 {[%clk 0:00:03.6]} 0-1

[Event "Early-Titled-Tuesday-Blitz-October-24-2023"]
[Site "Chess.com"]
[Date "2023.10.24"]
[Round "10"]
[White "GroovyKettle"]
[Black "Duhless"]
[Result "0-1"]
[WhiteElo "3008"]
[BlackElo "3097"]
[TimeControl "180+1"]
[EndTime "9:53:41 PDT"]
[Termination "Duhless won on time"]

1. e4 {[%clk 0:03:00.9]} 1... c5 {[%clk 0:02:59.8]} 2. Nf3 {[%clk 0:03:01]} 2...
e6 {[%clk 0:03:00.2]} 3. c3 {[%clk 0:02:59.6]} 3... d5 {[%clk 0:03:00]} 4. exd5
{[%clk 0:02:59.3]} 4... exd5 {[%clk 0:03:00.9]} 5. d4 {[%clk 0:02:59.3]} 5...
Nc6 {[%clk 0:03:01.1]} 6. Bb5 {[%clk 0:02:59.5]} 6... Bd6 {[%clk 0:03:01.1]} 7.
dxc5 {[%clk 0:02:59.8]} 7... Bxc5 {[%clk 0:03:01.5]} 8. O-O {[%clk 0:03:00.2]}
8... Ne7 {[%clk 0:03:02.2]} 9. Re1 {[%clk 0:02:58.6]} 9... O-O {[%clk
0:03:01.7]} 10. Nbd2 {[%clk 0:02:56]} 10... Nf5 {[%clk 0:02:56.6]} 11. Bd3
{[%clk 0:02:31.5]} 11... h6 {[%clk 0:02:52.8]} 12. Nb3 {[%clk 0:02:31.5]} 12...
Bb6 {[%clk 0:02:52.6]} 13. Qc2 {[%clk 0:02:31.2]} 13... Qf6 {[%clk 0:02:51.6]}
14. Bd2 {[%clk 0:02:17.1]} 14... Nh4 {[%clk 0:02:41]} 15. Be2 {[%clk 0:02:14.5]}
15... Bf5 {[%clk 0:01:37.6]} 16. Qd1 {[%clk 0:02:06.7]} 16... Rae8 {[%clk
0:01:01]} 17. Bf4 {[%clk 0:00:45.9]} 17... Bg4 {[%clk 0:00:24.1]} 18. Bg3 {[%clk
0:00:45.3]} 18... Rxe2 {[%clk 0:00:16.9]} 19. Qxe2 {[%clk 0:00:33.3]} 19...
Nxf3+ {[%clk 0:00:14.6]} 20. gxf3 {[%clk 0:00:33.1]} 20... Bxf3 {[%clk
0:00:15.5]} 21. Qd3 {[%clk 0:00:33.1]} 21... Be4 {[%clk 0:00:11.6]} 22. Qe2
{[%clk 0:00:26.1]} 22... Ne5 {[%clk 0:00:08.8]} 23. Nd2 {[%clk 0:00:25]} 23...
Nf3+ {[%clk 0:00:05.3]} 24. Nxf3 {[%clk 0:00:25.2]} 24... Bxf3 {[%clk
0:00:06.2]} 25. Qe5 {[%clk 0:00:24.6]} 25... Qg6 {[%clk 0:00:05.5]} 26. Qf4
{[%clk 0:00:21.3]} 26... Be4 {[%clk 0:00:05.6]} 27. Rad1 {[%clk 0:00:20.3]}
27... h5 {[%clk 0:00:05.4]} 28. h4 {[%clk 0:00:19.7]} 28... Rc8 {[%clk
0:00:04.6]} 29. Kh2 {[%clk 0:00:17]} 29... Kh7 {[%clk 0:00:04.7]} 30. Qg5 {[%clk
0:00:17]} 30... Qxg5 {[%clk 0:00:05.2]} 31. hxg5 {[%clk 0:00:17.2]} 31... Kg6
{[%clk 0:00:06.1]} 32. Rd2 {[%clk 0:00:12.5]} 32... Kxg5 {[%clk 0:00:05.9]} 33.
Be5 {[%clk 0:00:13.2]} 33... f6 {[%clk 0:00:05.8]} 34. Rg1+ {[%clk 0:00:12.6]}
34... Kf5 {[%clk 0:00:05.9]} 35. Bd4 {[%clk 0:00:12.6]} 35... Bc7+ {[%clk
0:00:06.5]} 36. Kh3 {[%clk 0:00:13.1]} 36... g5 {[%clk 0:00:06.8]} 37. Rf1
{[%clk 0:00:08]} 37... Bf3 {[%clk 0:00:06.2]} 38. Re1 {[%clk 0:00:06.9]} 38...
Bf4 {[%clk 0:00:05.7]} 39. Be3 {[%clk 0:00:06.8]} 39... Be5 {[%clk 0:00:06.2]}
40. Rd3 {[%clk 0:00:05.6]} 40... g4+ {[%clk 0:00:05.7]} 41. Kh4 {[%clk
0:00:05.8]} 41... Be4 {[%clk 0:00:06]} 42. Rdd1 {[%clk 0:00:05.8]} 42... a6
{[%clk 0:00:06]} 43. Bd2 {[%clk 0:00:05.3]} 43... Rg8 {[%clk 0:00:05.7]} 44. Rg1
{[%clk 0:00:05.1]} 44... Bf3 {[%clk 0:00:05.5]} 45. Rde1 {[%clk 0:00:05.1]}
45... b5 {[%clk 0:00:05.8]} 46. Be3 {[%clk 0:00:05.5]} 46... Be4 {[%clk
0:00:05.2]} 47. Rd1 {[%clk 0:00:05.7]} 47... Ke6 {[%clk 0:00:05]} 48. Rde1
{[%clk 0:00:05.9]} 48... f5 {[%clk 0:00:05.2]} 49. Bg5 {[%clk 0:00:06.5]} 49...
f4 {[%clk 0:00:04]} 50. f3 {[%clk 0:00:05.7]} 50... gxf3 {[%clk 0:00:03.8]} 51.
Kxh5 {[%clk 0:00:04.6]} 51... Kf5 {[%clk 0:00:04.1]} 52. Bh6 {[%clk 0:00:04.2]}
52... Rxg1 {[%clk 0:00:03.7]} 53. Rxg1 {[%clk 0:00:05.1]} 53... Bd3 {[%clk
0:00:03.9]} 54. Rg5+ {[%clk 0:00:04.3]} 54... Ke4 {[%clk 0:00:04.4]} 0-1

[Event "Early-Titled-Tuesday-Blitz-October-24-2023"]
[Site "Chess.com"]
[Date "2023.10.24"]
[Round "10"]
[White "vladgoncharov"]
[Black "EvgenyBurmakin"]
[Result "0-1"]
[WhiteElo "2567"]
[BlackElo "2381"]
[TimeControl "180+1"]
[EndTime "9:53:42 PDT"]
[Termination "EvgenyBurmakin won by resignation"]

1. d4 {[%clk 0:03:00.9]} 1... Nf6 {[%clk 0:02:59.7]} 2. c4 {[%clk 0:03:00.3]}
2... g6 {[%clk 0:02:59.9]} 3. Nc3 {[%clk 0:02:59.7]} 3... Bg7 {[%clk 0:03:00.3]}
4. Nf3 {[%clk 0:02:59.5]} 4... O-O {[%clk 0:02:59.8]} 5. Bg5 {[%clk 0:02:59.3]}
5... d6 {[%clk 0:02:42.1]} 6. e3 {[%clk 0:02:59]} 6... c5 {[%clk 0:02:41.6]} 7.
d5 {[%clk 0:02:52.7]} 7... h6 {[%clk 0:02:37.1]} 8. Bh4 {[%clk 0:02:51.7]} 8...
e6 {[%clk 0:02:31.4]} 9. Be2 {[%clk 0:02:40.5]} 9... Na6 {[%clk 0:02:25.2]} 10.
O-O {[%clk 0:02:38]} 10... Nc7 {[%clk 0:02:24.9]} 11. e4 {[%clk 0:02:28.1]}
11... exd5 {[%clk 0:02:21.5]} 12. exd5 {[%clk 0:02:27.7]} 12... Bf5 {[%clk
0:02:19.2]} 13. Nd2 {[%clk 0:02:25.6]} 13... g5 {[%clk 0:01:54.7]} 14. Bg3
{[%clk 0:02:25.2]} 14... Re8 {[%clk 0:01:51.1]} 15. Re1 {[%clk 0:02:23.9]} 15...
Qd7 {[%clk 0:01:50.9]} 16. Qa4 {[%clk 0:02:10.2]} 16... Qxa4 {[%clk 0:01:15.2]}
17. Nxa4 {[%clk 0:02:09.3]} 17... Bf8 {[%clk 0:01:02.7]} 18. Nxc5 {[%clk
0:02:02]} 18... Ncxd5 {[%clk 0:00:57.3]} 19. cxd5 {[%clk 0:01:47.9]} 19... dxc5
{[%clk 0:00:57.5]} 20. Bf3 {[%clk 0:01:14.4]} 20... Red8 {[%clk 0:00:52.6]} 21.
Nc4 {[%clk 0:01:10.3]} 21... g4 {[%clk 0:00:34.9]} 22. Bh4 {[%clk 0:00:57.3]}
22... Bg7 {[%clk 0:00:34]} 23. Bxf6 {[%clk 0:00:54]} 23... Bxf6 {[%clk
0:00:34.9]} 24. Be4 {[%clk 0:00:54.6]} 24... Bxe4 {[%clk 0:00:32]} 25. Rxe4
{[%clk 0:00:54.6]} 25... Rxd5 {[%clk 0:00:32]} 26. Rxg4+ {[%clk 0:00:54.7]}
26... Kf8 {[%clk 0:00:32.5]} 27. Rb1 {[%clk 0:00:48.2]} 27... Rad8 {[%clk
0:00:31.1]} 28. h4 {[%clk 0:00:47.4]} 28... Rd1+ {[%clk 0:00:30.4]} 29. Rxd1
{[%clk 0:00:46.5]} 29... Rxd1+ {[%clk 0:00:31.3]} 30. Kh2 {[%clk 0:00:46.9]}
30... b5 {[%clk 0:00:31.5]} 31. Ne3 {[%clk 0:00:46.7]} 31... Rd2 {[%clk
0:00:29.3]} 32. a4 {[%clk 0:00:46.6]} 32... a6 {[%clk 0:00:26]} 33. axb5 {[%clk
0:00:45.2]} 33... axb5 {[%clk 0:00:26.9]} 34. b3 {[%clk 0:00:44.7]} 34... Rxf2
{[%clk 0:00:25.8]} 35. Re4 {[%clk 0:00:42]} 35... Re2 {[%clk 0:00:22.6]} 36. Kg3
{[%clk 0:00:33.9]} 36... Bd4 {[%clk 0:00:20.3]} 37. Kf3 {[%clk 0:00:33.8]} 37...
Rxe3+ {[%clk 0:00:19.4]} 38. Rxe3 {[%clk 0:00:34.7]} 38... Bxe3 {[%clk
0:00:19.9]} 39. Kxe3 {[%clk 0:00:35.6]} 39... Ke7 {[%clk 0:00:19.8]} 40. Ke4
{[%clk 0:00:35.5]} 40... Ke6 {[%clk 0:00:20.1]} 41. g4 {[%clk 0:00:35.9]} 41...
Kf6 {[%clk 0:00:11.9]} 42. Kd5 {[%clk 0:00:34.1]} 42... c4 {[%clk 0:00:12.2]}
43. bxc4 {[%clk 0:00:33.5]} 43... bxc4 {[%clk 0:00:13.1]} 44. Kd4 {[%clk
0:00:34]} 44... Ke6 {[%clk 0:00:12.3]} 45. Kxc4 {[%clk 0:00:27.8]} 45... Ke5
{[%clk 0:00:11.3]} 46. Kd3 {[%clk 0:00:24.6]} 46... Kf4 {[%clk 0:00:11.4]} 47.
g5 {[%clk 0:00:24.4]} 47... hxg5 {[%clk 0:00:12.3]} 48. h5 {[%clk 0:00:24.7]}
48... Kf5 {[%clk 0:00:12.1]} 49. Ke3 {[%clk 0:00:24.7]} 49... g4 {[%clk
0:00:10.4]} 50. h6 {[%clk 0:00:24.7]} 50... Kg6 {[%clk 0:00:10.4]} 51. Kf4
{[%clk 0:00:24.9]} 51... Kxh6 {[%clk 0:00:10.6]} 52. Kxg4 {[%clk 0:00:24.8]}
52... Kg6 {[%clk 0:00:11.1]} 53. Kf4 {[%clk 0:00:25.4]} 53... Kf6 {[%clk
0:00:11.7]} 54. Ke4 {[%clk 0:00:25.1]} 54... Kg5 {[%clk 0:00:11.9]} 55. Kf3
{[%clk 0:00:25.8]} 55... Kf5 {[%clk 0:00:12.4]} 56. Kg3 {[%clk 0:00:26.7]} 56...
Ke4 {[%clk 0:00:12.3]} 57. Kg2 {[%clk 0:00:27.6]} 57... Kf4 {[%clk 0:00:12.5]}
58. Kf2 {[%clk 0:00:27.8]} 58... f6 {[%clk 0:00:13.2]} 59. Kg2 {[%clk
0:00:28.6]} 59... Ke3 {[%clk 0:00:13.2]} 60. Kg3 {[%clk 0:00:28.8]} 60... f5
{[%clk 0:00:13.7]} 61. Kg2 {[%clk 0:00:29.2]} 61... f4 {[%clk 0:00:13.9]} 62.
Kg1 {[%clk 0:00:27.7]} 62... Kf3 {[%clk 0:00:14.4]} 63. Kf1 {[%clk 0:00:27.9]}
63... Kg3 {[%clk 0:00:13.3]} 64. Kg1 {[%clk 0:00:27.6]} 64... f3 {[%clk
0:00:13.8]} 65. Kh1 {[%clk 0:00:25.8]} 65... Kf2 {[%clk 0:00:13.8]} 66. Kh2
{[%clk 0:00:25.6]} 66... Ke2 {[%clk 0:00:14.1]} 67. Kg3 {[%clk 0:00:26.1]} 67...
f2 {[%clk 0:00:14.6]} 0-1

[Event "Early-Titled-Tuesday-Blitz-October-24-2023"]
[Site "Chess.com"]
[Date "2023.10.24"]
[Round "10"]
[White "Rodalquilar"]
[Black "masterofpuppets2"]
[Result "1-0"]
[WhiteElo "2740"]
[BlackElo "2544"]
[TimeControl "180+1"]
[EndTime "9:53:44 PDT"]
[Termination "Rodalquilar won by resignation"]

1. d4 {[%clk 0:03:00.9]} 1... Nf6 {[%clk 0:02:57.9]} 2. Nf3 {[%clk 0:03:01.2]}
2... g6 {[%clk 0:02:57.8]} 3. Bf4 {[%clk 0:03:01.4]} 3... Bg7 {[%clk 0:02:57.4]}
4. e3 {[%clk 0:03:01.9]} 4... d6 {[%clk 0:02:57.3]} 5. Be2 {[%clk 0:03:02.4]}
5... O-O {[%clk 0:02:57.1]} 6. O-O {[%clk 0:03:02.7]} 6... Nc6 {[%clk
0:02:57.5]} 7. c3 {[%clk 0:03:02.5]} 7... Nd7 {[%clk 0:02:56]} 8. e4 {[%clk
0:03:03]} 8... e5 {[%clk 0:02:52.6]} 9. Bg5 {[%clk 0:03:03.4]} 9... f6 {[%clk
0:02:46.9]} 10. Bh4 {[%clk 0:03:03.6]} 10... Qe8 {[%clk 0:02:37.7]} 11. Re1
{[%clk 0:03:03.9]} 11... Nd8 {[%clk 0:02:33.2]} 12. Na3 {[%clk 0:02:50.7]} 12...
a6 {[%clk 0:02:30.7]} 13. Nc4 {[%clk 0:02:47.1]} 13... Ne6 {[%clk 0:02:27.1]}
14. Ne3 {[%clk 0:02:43.3]} 14... f5 {[%clk 0:02:17.6]} 15. exf5 {[%clk
0:02:42.5]} 15... gxf5 {[%clk 0:02:17.6]} 16. dxe5 {[%clk 0:02:42.4]} 16... dxe5
{[%clk 0:02:17.6]} 17. Bc4 {[%clk 0:02:29.3]} 17... Kh8 {[%clk 0:02:10.4]} 18.
Nd5 {[%clk 0:02:01.7]} 18... e4 {[%clk 0:02:02.9]} 19. Ng5 {[%clk 0:01:59.4]}
19... Nxg5 {[%clk 0:01:35.2]} 20. Bxg5 {[%clk 0:01:37.5]} 20... Ne5 {[%clk
0:01:34.4]} 21. Be2 {[%clk 0:01:29.6]} 21... Qf7 {[%clk 0:01:25]} 22. Bh5 {[%clk
0:01:18.6]} 22... Qd7 {[%clk 0:01:19.2]} 23. Nf4 {[%clk 0:01:15.4]} 23... Qc6
{[%clk 0:01:09.8]} 24. Qb3 {[%clk 0:01:05.1]} 24... b5 {[%clk 0:00:56.9]} 25.
Rad1 {[%clk 0:01:01.3]} 25... Bh6 {[%clk 0:00:45.9]} 26. Be7 {[%clk 0:00:35.7]}
26... Rg8 {[%clk 0:00:28.5]} 27. Qxg8+ {[%clk 0:00:29]} 27... Kxg8 {[%clk
0:00:27.8]} 28. Rd8+ {[%clk 0:00:29]} 28... Kg7 {[%clk 0:00:28.5]} 29. Bf8+
{[%clk 0:00:29]} 29... Kf6 {[%clk 0:00:27.1]} 30. Bxh6 {[%clk 0:00:26.4]} 30...
Be6 {[%clk 0:00:18.8]} 31. Red1 {[%clk 0:00:13.2]} 31... Nd3 {[%clk 0:00:16.5]}
32. Rxa8 {[%clk 0:00:10.5]} 32... Qxa8 {[%clk 0:00:16.1]} 33. Nxd3 {[%clk
0:00:10.6]} 33... exd3 {[%clk 0:00:16.4]} 34. Rxd3 {[%clk 0:00:11.2]} 34... Bf7
{[%clk 0:00:15.4]} 35. Bf3 {[%clk 0:00:10.7]} 35... Qg8 {[%clk 0:00:12.9]} 36.
h4 {[%clk 0:00:10.1]} 36... Bc4 {[%clk 0:00:12]} 37. Bg5+ {[%clk 0:00:10.2]}
37... Kg6 {[%clk 0:00:12.1]} 38. Rd7 {[%clk 0:00:09]} 38... Be6 {[%clk
0:00:11.2]} 39. Rxc7 {[%clk 0:00:08.8]} 39... Qb8 {[%clk 0:00:10.4]} 40. Bf4
{[%clk 0:00:08.4]} 40... Qd8 {[%clk 0:00:09.8]} 41. h5+ {[%clk 0:00:05.9]} 41...
Kf6 {[%clk 0:00:08.8]} 42. Rxh7 {[%clk 0:00:06.1]} 42... Bd5 {[%clk 0:00:07.5]}
43. Rh6+ {[%clk 0:00:04.2]} 43... Kg7 {[%clk 0:00:07.4]} 44. Rd6 {[%clk
0:00:04.2]} 44... Qe8 {[%clk 0:00:03.8]} 45. h6+ {[%clk 0:00:04.2]} 45... Kh7
{[%clk 0:00:03.9]} 46. Rxd5 {[%clk 0:00:04.8]} 46... Qe1+ {[%clk 0:00:03.9]} 47.
Kh2 {[%clk 0:00:05.6]} 47... Qxf2 {[%clk 0:00:04.8]} 48. Rd7+ {[%clk 0:00:05.9]}
48... Kg6 {[%clk 0:00:04.7]} 49. Rg7+ {[%clk 0:00:05.2]} 49... Kf6 {[%clk
0:00:05.1]} 50. Bg5+ {[%clk 0:00:05.7]} 50... Ke6 {[%clk 0:00:04.6]} 51. Re7+
{[%clk 0:00:05.7]} 51... Kd6 {[%clk 0:00:04.6]} 52. h7 {[%clk 0:00:06.3]} 52...
f4 {[%clk 0:00:03.3]} 53. h8=Q {[%clk 0:00:05.7]} 53... Qxf3 {[%clk 0:00:03.7]}
54. gxf3 {[%clk 0:00:05.2]} 1-0